{"text_format":"1","workbook":"xlsx","n_sheets":6,"sheets":["Berechnungstool","NEFZ_WLTP","Treibstoff","RE_Treibstoff","Berechnungsjahr","Parameter"],"not_rendered":{"charts":0,"images":1,"macros":1,"external_links":0,"defined_names":2,"comments":0,"pivot_tables":0},"unopened":[],"bounds":{"document_bytes":16777216,"sheet_cells":100000,"rows_first":2000,"rows_last":500,"rows_between":2000,"halvings":0,"cell_chars":16384,"cell_head_chars":4096},"cells_cut":0,"cells_raw":0,"read":"whole","date_system":"1900"}

{"sheet":"Berechnungstool","index":0,"n_rows":25,"n_cols":9,"rows_kept":25,"cut":false,"hidden":false,"merged":[]}
[null,null,null,null,{"$f":"IF(H5=1,\"Eidgenössisches Departement für Umwelt, Verkehr, Energie und Kommunikation UVEK\",IF(H5=2,\"Département fédéral de l'environnement, des transports, de l'énergie et de la communication DETEC\",IF(H5=3,\"Dipartimento federale dell'ambiente, dei trasporti, dell'energia e delle comunicazioni DATEC\")))","v":"Eidgenössisches Departement für Umwelt, Verkehr, Energie und Kommunikation UVEK"}]
[null,null,null,null,{"$f":"IF(H5=1,\"ASTRA Bundesamt für Strassen\",IF(H5=2,\"OFROU Office fédéral des routes\",IF(H5=3,\"USTRA Ufficio federale delle strade\")))","v":"ASTRA Bundesamt für Strassen"}]
[]
[]
[{"$f":"IF(H5=1,\"Berechnung der Energieeffizienzkategorie\",IF(H5=2,\"Calcul de la catégorie d'efficacité énergétique\",IF(H5=3,\"Calcolo della categoria di efficienza energetica\")))","v":"Berechnung der Energieeffizienzkategorie"},null,null,null," ",null,null,1]
[]
[{"$f":"IF(H5=1,\"Berechnungsjahr\",IF(H5=2,\"Année de calcul\",IF(H5=3,\"Anno di calcolo\")))","v":"Berechnungsjahr"},null,"*",12,null,{"$f":"IF(H5=1,\"Grundlage\",IF(H5=2,\"Base\",IF(H5=3,\"Base\")))","v":"Grundlage"},{"$f":"IF(D7>8,\"*\",\"\")","v":"*"},1]
[]
[{"$f":"IF(H5=1,\"Treibstoffart\",IF(H5=2,\"Type de carburant\",IF(H5=3,\"Tipo di carburante\")))","v":"Treibstoffart"},null,"*",1,null,"Plug-In",{"$f":"IF(D9=2,\"*\",IF(D9=5,\"*\",IF(D9=14,\"*\",\"\")))","v":""}]
[]
[{"$f":"IF(H5=1,\"Treibstoffart bei Range extender\",IF(H5=2,\"Type de carburant du Range extender\",IF(H5=3,\"Tipo di carburante del Range extender\")))","v":"Treibstoffart bei Range extender"},null,{"$f":"IF(D9=12,\"*\",\"\")","v":""}]
[]
[{"$f":"IF(H5=1,\"Leergewicht\",IF(H5=2,\"Poids à vide\",IF(H5=3,\"Peso di tara\")))","v":"Leergewicht"},null,{"$f":"IF(D7<9,\"*\",\"\")","v":""},null,"kg"]
[]
[null,null,null,{"$f":"IF(H5=1,\"Ersttreibstoff - ET\",IF(H5=2,\"Combustible primaire\",IF(H5=3,\"combustibile primario\")))","v":"Ersttreibstoff - ET"},null,null,null,{"$f":"IF(H5=1,\"Zweittreibstoff - ZT\",IF(H5=2,\"combustible secondaire\",IF(H5=3,\"combustibile secondario\")))","v":"Zweittreibstoff - ZT"}]
[{"$f":"IF(H5=1,\"Verbrauch\",IF(H5=2,\"Consommation\",IF(H5=3,\"Consumo\")))","v":"Verbrauch"},null,{"$f":"IF(D9=4,\"\",\"*\")","v":"*"},null,{"$f":"IF(D9=10,\"m3\",IF(D9=13,\"kg\",IF(D9=14,\"kg\",IF(D9=12,IF(D11=5,\"m3\",IF(D11=6,\"kg\",\"L\")),\"L\"))))","v":"L"},null,{"$f":"IF(D9=15,\"*\",IF(D9=16,\"*\",IF(D9=7,\"*\",\"\")))","v":""},null,{"$f":"IF(D9=15,\"m3\",\"L\")","v":"L"}]
[]
[{"$f":"IF(H5=1,\"Stromverbrauch\",IF(H5=2,\"Consommation d'énergie electrique\",IF(H5=3,\"Consumo di energia elettrico\")))","v":"Stromverbrauch"},null,{"$f":"IF(AND(D9=2,H9=1),\"*\",IF(AND(D9=5,H9=1),\"*\",IF(AND(D9=14,H9=1),\"*\",IF(D9=12,\"*\",IF(D9=4,\"*\",\"\")))))","v":""},null,"Wh/km"]
[]
[]
[]
[]
[]
[]
[{"$f":"IF(H5=1,\"Energieeffizienzkategorie\",IF(H5=2,\"Catégorie efficacité énergétique\",IF(H5=3,\"Categoria di efficienza energetica\")))","v":"Energieeffizienzkategorie"},null,null,null,null,null,null,{"$f":"IF(H5=1,\"Mit * markierte Felder müssen ausgefüllt werden\",IF(H5=2,\"Les champs marqués d'un * doivent être remplis\",IF(H5=3,\"I campi contrassegnati con * devono essere compilati\")))","v":"Mit * markierte Felder müssen ausgefüllt werden"}]

{"sheet":"NEFZ_WLTP","index":1,"n_rows":2,"n_cols":1,"rows_kept":2,"cut":false,"hidden":true,"merged":[]}
["WLTP"]
["NEFZ"]

{"sheet":"Treibstoff","index":2,"n_rows":16,"n_cols":5,"rows_kept":16,"cut":false,"hidden":true,"merged":[]}
["Benzin","B","Benzin","Essence","Benzina"]
["Benzin / Elektrisch","C","Benzin / Elektrisch","Essence / Électrique","Benzina / Elettrico"]
["Diesel","D","Diesel","Diesel","Diesel"]
["Elektrisch","E","Elektrisch","Électrique","Elettrico"]
["Diesel / Elektrisch","F","Diesel / Elektrisch","Diesel / Électrique","Diesel / Elettrico"]
["Alkohol (Ethanol)","J","Alkohol (Ethanol)","Alcool (éthanol)","Alcool (etanolo)"]
["Benzin / Alkohol (Ethanol)","K","Benzin / Alkohol (Ethanol)","Essence / Alcool (Éthanol)","Benzina / Alcool (Etanolo)"]
["Flüssiggas (LPG)","L","Flüssiggas (LPG)","gaz de pétrole liquéfié (GPL)","gas di petrolio liquefatto (GPL)"]
["Methanol","M","Methanol","Méthanol","Metanolo"]
["Erdgas (CNG)","N","Erdgas (CNG)","Gaz naturel (GNC)","Gas naturale (GNC)"]
["Petrol","P","Petrol","Pétrole","Benzina"]
["Elektrisch mit Range Extender","R","Elektrisch mit Range Extender","Électrique avec Range Extender","Elettrico con range extender"]
["Wasserstoff","W","Wasserstoff","Hydrogène","Idrogeno"]
["Wasserstoff / Elektrisch","X","Wasserstoff / Elektrisch","Hydrogène / Électrique","Idrogeno / Elettrico"]
["Benzin / Erdgas (CNG)","Y","Benzin / Erdgas (CNG)","Essence / Gaz naturel (GNC)","Benzina / Gas naturale (GNC)"]
["Benzin / Flüssiggas (LPG)","Z","Benzin / Flüssiggas (LPG)","Essence / gaz liquide (GPL)","Benzina / Gas liquido (GPL)"]

{"sheet":"RE_Treibstoff","index":3,"n_rows":6,"n_cols":5,"rows_kept":6,"cut":false,"hidden":true,"merged":[]}
[]
["Benzin","B","Benzin","Essence","Benzina"]
["Diesel","D","Diesel","Diesel","Diesel"]
["Flüssiggas (LPG)","L","Flüssiggas (LPG)","gaz de pétrole liquéfié (GPL)","gas di petrolio liquefatto (GPL)"]
["Erdgas (CNG)","N","Erdgas (CNG)","Gaz naturel (GNC)","Gas naturale (GNC)"]
["Wasserstoff","W","Wasserstoff","Hydrogène","Idrogeno"]

{"sheet":"Berechnungsjahr","index":4,"n_rows":12,"n_cols":1,"rows_kept":12,"cut":false,"hidden":true,"merged":[]}
[2012]
[2013]
[2014]
[2015]
[2016]
[2017]
[2018]
[2019]
[2020]
[2021]
[2022]
[2023]

{"sheet":"Parameter","index":5,"n_rows":1,"n_cols":1,"rows_kept":1,"cut":false,"hidden":true,"merged":[]}
["<?xml version=\"1.0\" encoding=\"utf-8\"?>\n<AstraEfficiencyClassDatabase Version=\"001\">\n <EfficiencyClassParameter Formular=\"M1-EB_v05\" Jahr=\"2012\">\n  <BewertungsParameter_r>0.3</BewertungsParameter_r>\n  <Mittelwert_BenzinÄquivalent>7.1684288</Mittelwert_BenzinÄquivalent>\n  <Mittelwert_relative_EnergieEffizienz>0.0043951</Mittelwert_relative_EnergieEffizienz>\n  <Standardabweichung_Benzinäquivalent>2.1241414</Standardabweichung_Benzinäquivalent>\n  <Standardabweichung_relative_EnergieEffizienz>0.001035</Standardabweichung_relative_EnergieEffizienz>\n  <BenzinÄquivalent_Diesel>1.06</BenzinÄquivalent_Diesel>\n  <BenzinÄquivalent_Erdgas_CNG>0.88</BenzinÄquivalent_Erdgas_CNG>\n  <BenzinÄquivalent_Autogas_LPG>0.68</BenzinÄquivalent_Autogas_LPG>\n  <BenzinÄquivalent_E85>1.71</BenzinÄquivalent_E85>\n  <BenzinÄquivalent_ElektroFz>0.24</BenzinÄquivalent_ElektroFz>\n  <BewertungsBereich_A>413.07</BewertungsBereich_A>\n  <BewertungsBereich_B>445.88</BewertungsBereich_B>\n  <BewertungsBereich_C>474.84</BewertungsBereich_C>\n  <BewertungsBereich_D>499.67</BewertungsBereich_D>\n  <BewertungsBereich_E>525.92</BewertungsBereich_E>\n  <BewertungsBereich_F>570.87</BewertungsBereich_F>\n </EfficiencyClassParameter>\n <EfficiencyClassParameter Formular=\"M1-EB_v05\" Jahr=\"2013\">\n  <BewertungsParameter_r>0.3</BewertungsParameter_r>\n  <Mittelwert_BenzinÄquivalent>6.546778995</Mittelwert_BenzinÄquivalent>\n  <Mittelwert_relative_EnergieEffizienz>0.003980459</Mittelwert_relative_EnergieEffizienz>\n  <Standardabweichung_Benzinäquivalent>2.034646103</Standardabweichung_Benzinäquivalent>\n  <Standardabweichung_relative_EnergieEffizienz>0.001050185</Standardabweichung_relative_EnergieEffizienz>\n  <BenzinÄquivalent_Diesel>1.06</BenzinÄquivalent_Diesel>\n  <BenzinÄquivalent_Erdgas_CNG>0.88</BenzinÄquivalent_Erdgas_CNG>\n  <BenzinÄquivalent_Autogas_LPG>0.68</BenzinÄquivalent_Autogas_LPG>\n  <BenzinÄquivalent_E85>1.71</BenzinÄquivalent_E85>\n  <BenzinÄquivalent_ElektroFz>0.24</BenzinÄquivalent_ElektroFz>\n  <BewertungsBereich_A>420.12</BewertungsBereich_A>\n  <BewertungsBereich_B>441.08</BewertungsBereich_B>\n  <BewertungsBereich_C>470.35</BewertungsBereich_C>\n  <BewertungsBereich_D>496.88</BewertungsBereich_D>\n  <BewertungsBereich_E>524.94</BewertungsBereich_E>\n  <BewertungsBereich_F>572.8</BewertungsBereich_F>\n </EfficiencyClassParameter>\n <EfficiencyClassParameter Formular=\"M1-EB_v05\" Jahr=\"2014\">\n  <BewertungsParameter_r>0.3</BewertungsParameter_r>\n  <Mittelwert_BenzinÄquivalent>6.546778995</Mittelwert_BenzinÄquivalent>\n  <Mittelwert_relative_EnergieEffizienz>0.003980459</Mittelwert_relative_EnergieEffizienz>\n  <Standardabweichung_Benzinäquivalent>2.034646103</Standardabweichung_Benzinäquivalent>\n  <Standardabweichung_relative_EnergieEffizienz>0.001050185</Standardabweichung_relative_EnergieEffizienz>\n  <BenzinÄquivalent_Diesel>1.06</BenzinÄquivalent_Diesel>\n  <BenzinÄquivalent_Erdgas_CNG>0.88</BenzinÄquivalent_Erdgas_CNG>\n  <BenzinÄquivalent_Autogas_LPG>0.68</BenzinÄquivalent_Autogas_LPG>\n  <BenzinÄquivalent_E85>1.71</BenzinÄquivalent_E85>\n  <BenzinÄquivalent_ElektroFz>0.24</BenzinÄquivalent_ElektroFz>\n  <BewertungsBereich_A>420.12</BewertungsBereich_A>\n  <BewertungsBereich_B>441.08</BewertungsBereich_B>\n  <BewertungsBereich_C>470.35</BewertungsBereich_C>\n  <BewertungsBereich_D>496.88</BewertungsBereich_D>\n  <BewertungsBereich_E>524.94</BewertungsBereich_E>\n  <BewertungsBereich_F>572.8</BewertungsBereich_F>\n </EfficiencyClassParameter>\n <EfficiencyClassParameter Formular=\"M1-EB_v05\" Jahr=\"2015\">\n  <BewertungsParameter_r>0.3</BewertungsParameter_r>\n  <Mittelwert_BenzinÄquivalent>6.394715162</Mittelwert_BenzinÄquivalent>\n  <Mittelwert_relative_EnergieEffizienz>0.003877691</Mittelwert_relative_EnergieEffizienz>\n  <Standardabweichung_Benzinäquivalent>1.924755502</Standardabweichung_Benzinäquivalent>\n  <Standardabweichung_relative_EnergieEffizienz>0.001051359</Standardabweichung_relative_EnergieEffizienz>\n  <BenzinÄquivalent_Diesel>1.06</BenzinÄquivalent_Diesel>\n  <BenzinÄquivalent_Erdgas_CNG>0.88</BenzinÄquivalent_Erdgas_CNG>\n  <BenzinÄquivalent_Autogas_LPG>0.68</BenzinÄquivalent_Autogas_LPG>\n  <BenzinÄquivalent_E85>1.71</BenzinÄquivalent_E85>\n  <BenzinÄquivalent_ElektroFz>0.24</BenzinÄquivalent_ElektroFz>\n  <BewertungsBereich_A>420.70</BewertungsBereich_A>\n  <BewertungsBereich_B>439.49</BewertungsBereich_B>\n  <BewertungsBereich_C>468.55</BewertungsBereich_C>\n  <BewertungsBereich_D>497.53</BewertungsBereich_D>\n  <BewertungsBereich_E>527.05</BewertungsBereich_E>\n  <BewertungsBereich_F>579.22</BewertungsBereich_F>\n </EfficiencyClassParameter>\n <EfficiencyClassParameter Formular=\"M1-EB_v05\" Jahr=\"2016\">\n  <BewertungsParameter_r>0.3</BewertungsParameter_r>\n  <Mittelwert_BenzinÄquivalent>6.119917587</Mittelwert_BenzinÄquivalent>\n  <Mittelwert_relative_EnergieEffizienz>0.003657757</Mittelwert_relative_EnergieEffizienz>\n  <Standardabweichung_Benzinäquivalent>1.796394724</Standardabweichung_Benzinäquivalent>\n  <Standardabweichung_relative_EnergieEffizienz>0.000928759</Standardabweichung_relative_EnergieEffizienz>\n  <BenzinÄquivalent_Diesel>1.06</BenzinÄquivalent_Diesel>\n  <BenzinÄquivalent_Erdgas_CNG>0.85</BenzinÄquivalent_Erdgas_CNG>\n  <BenzinÄquivalent_Autogas_LPG>0.68</BenzinÄquivalent_Autogas_LPG>\n  <BenzinÄquivalent_E85>1.72</BenzinÄquivalent_E85>\n  <BenzinÄquivalent_ElektroFz>0.24</BenzinÄquivalent_ElektroFz>\n  <BewertungsBereich_A>417.51</BewertungsBereich_A>\n  <BewertungsBereich_B>442.00</BewertungsBereich_B>\n  <BewertungsBereich_C>465.11</BewertungsBereich_C>\n  <BewertungsBereich_D>495.91</BewertungsBereich_D>\n  <BewertungsBereich_E>530.38</BewertungsBereich_E>\n  <BewertungsBereich_F>586.83</BewertungsBereich_F>\n </EfficiencyClassParameter>\n <EfficiencyClassParameter Formular=\"M1-EB_v05\" Jahr=\"2017\">\n  <BewertungsParameter_r>0.3</BewertungsParameter_r>\n  <Mittelwert_BenzinÄquivalent>5.810773357</Mittelwert_BenzinÄquivalent>\n  <Mittelwert_relative_EnergieEffizienz>0.003492632</Mittelwert_relative_EnergieEffizienz>\n  <Standardabweichung_Benzinäquivalent>1.642433169</Standardabweichung_Benzinäquivalent>\n  <Standardabweichung_relative_EnergieEffizienz>0.000820079</Standardabweichung_relative_EnergieEffizienz>\n  <BenzinÄquivalent_Diesel>1.08</BenzinÄquivalent_Diesel>\n  <BenzinÄquivalent_Erdgas_CNG>0.82</BenzinÄquivalent_Erdgas_CNG>\n  <BenzinÄquivalent_Autogas_LPG>0.70</BenzinÄquivalent_Autogas_LPG>\n  <BenzinÄquivalent_E85>1.63</BenzinÄquivalent_E85>\n  <BenzinÄquivalent_ElektroFz>0.24</BenzinÄquivalent_ElektroFz>\n  <BewertungsBereich_A>422.63</BewertungsBereich_A>\n  <BewertungsBereich_B>445.97</BewertungsBereich_B>\n  <BewertungsBereich_C>466.64</BewertungsBereich_C>\n  <BewertungsBereich_D>490.25</BewertungsBereich_D>\n  <BewertungsBereich_E>523.40</BewertungsBereich_E>\n  <BewertungsBereich_F>574.20</BewertungsBereich_F>\n </EfficiencyClassParameter>\n <EfficiencyClassParameter Formular=\"M1-EB_v05\" Jahr=\"2018\">\n  <BewertungsParameter_r GG=\"ENV Anh 3.6 Art 7.3 Relativierungsparameter\">0.3</BewertungsParameter_r>\n  <Mittelwert_BenzinÄquivalent GG=\"VEE-PW Art. 5 1\">5.704695260</Mittelwert_BenzinÄquivalent>\n  <Mittelwert_relative_EnergieEffizienz GG=\"VEE-PW Art. 5 3\">0.003303144</Mittelwert_relative_EnergieEffizienz>\n  <Standardabweichung_Benzinäquivalent GG=\"VEE-PW Art. 5 2\">1.516734406</Standardabweichung_Benzinäquivalent>\n  <Standardabweichung_relative_EnergieEffizienz GG=\"VEE-PW Art. 5 4\">0.000765087</Standardabweichung_relative_EnergieEffizienz>\n  <BenzinÄquivalent_Diesel GG=\"VEE-PW Art. 6 a\">1.07</BenzinÄquivalent_Diesel>\n  <BenzinÄquivalent_Erdgas_CNG  GG=\"VEE-PW Art. 6 b\">0.84</BenzinÄquivalent_Erdgas_CNG>\n  <BenzinÄquivalent_Autogas_LPG GG=\"VEE-PW Art. 6 c\">0.69</BenzinÄquivalent_Autogas_LPG>\n  <BenzinÄquivalent_E85 GG=\"VEE-PW Art. 6 d\">1.61</BenzinÄquivalent_E85>\n  <BenzinÄquivalent_ElektroFz GG=\"VEE-PW Art. 6 e\">0.21</BenzinÄquivalent_ElektroFz>\n  <BenzinÄquivalent_Wasserstoff GG=\"VEE-PW Art. 6 f\">0.60</BenzinÄquivalent_Wasserstoff>\n  <BewertungsBereich_A GG=\"VEE-PW Art. 7 A\">425.23</BewertungsBereich_A>\n  <BewertungsBereich_B GG=\"VEE-PW Art. 7 B\">448.31</BewertungsBereich_B>\n  <BewertungsBereich_C GG=\"VEE-PW Art. 7 C\">469.53</BewertungsBereich_C>\n  <BewertungsBereich_D GG=\"VEE-PW Art. 7 D\">490.88</BewertungsBereich_D>\n  <BewertungsBereich_E GG=\"VEE-PW Art. 7 E\">521.61</BewertungsBereich_E>\n  <BewertungsBereich_F GG=\"VEE-PW Art. 7 F\">573.74</BewertungsBereich_F>\n </EfficiencyClassParameter>\n <EfficiencyClassParameter Formular=\"M1-EB_v05\" Jahr=\"2019\">\n  <BewertungsParameter_r GG=\"ENV Anh 3.6 Art 7.3 Relativierungsparameter\">0.3</BewertungsParameter_r>\n  <Mittelwert_BenzinÄquivalent GG=\"VEE-PW Art. 5 1\">5.875474567</Mittelwert_BenzinÄquivalent>\n  <Mittelwert_relative_EnergieEffizienz GG=\"VEE-PW Art. 5 3\">0.003293135</Mittelwert_relative_EnergieEffizienz>\n  <Standardabweichung_Benzinäquivalent GG=\"VEE-PW Art. 5 2\">1.346984616</Standardabweichung_Benzinäquivalent>\n  <Standardabweichung_relative_EnergieEffizienz GG=\"VEE-PW Art. 5 4\">0.000711379</Standardabweichung_relative_EnergieEffizienz>\n  <BenzinÄquivalent_Diesel GG=\"VEE-PW Art. 6 a\">1.07</BenzinÄquivalent_Diesel>\n  <BenzinÄquivalent_Erdgas_CNG  GG=\"VEE-PW Art. 6 b\">0.84</BenzinÄquivalent_Erdgas_CNG>\n  <BenzinÄquivalent_Autogas_LPG GG=\"VEE-PW Art. 6 c\">0.69</BenzinÄquivalent_Autogas_LPG>\n  <BenzinÄquivalent_E85 GG=\"VEE-PW Art. 6 d\">1.61</BenzinÄquivalent_E85>\n  <BenzinÄquivalent_ElektroFz GG=\"VEE-PW Art. 6 e\">0.21</BenzinÄquivalent_ElektroFz>\n  <BenzinÄquivalent_Wasserstoff GG=\"VEE-PW Art. 6 f\">0.64</BenzinÄquivalent_Wasserstoff>\n  <BewertungsBereich_A GG=\"VEE-PW Art. 7 A\">426.34</BewertungsBereich_A>\n  <BewertungsBereich_B GG=\"VEE-PW Art. 7 B\">443.96</BewertungsBereich_B>\n  <BewertungsBereich_C GG=\"VEE-PW Art. 7 C\">466.00</BewertungsBereich_C>\n  <BewertungsBereich_D GG=\"VEE-PW Art. 7 D\">493.92</BewertungsBereich_D>\n  <BewertungsBereich_E GG=\"VEE-PW Art. 7 E\">525.66</BewertungsBereich_E>\n  <BewertungsBereich_F GG=\"VEE-PW Art. 7 F\">567.36</BewertungsBereich_F>\n </EfficiencyClassParameter>\n <EfficiencyClassParameter Formular=\"M1-EB_v05\" Jahr=\"2020\">\n  <BenzinÄquivalent_Diesel GG=\"VEE-PW Art. 4 a\">1.09</BenzinÄquivalent_Diesel>\n  <BenzinÄquivalent_Erdgas_CNG  GG=\"VEE-PW Art. 4 b\">0.80</BenzinÄquivalent_Erdgas_CNG>\n  <BenzinÄquivalent_Autogas_LPG GG=\"VEE-PW Art. 4 c\">0.78</BenzinÄquivalent_Autogas_LPG>\n  <BenzinÄquivalent_E85 GG=\"VEE-PW Art. 4 d\">1.67</BenzinÄquivalent_E85>\n  <BenzinÄquivalent_ElektroFz GG=\"VEE-PW Art. 4 e\">0.19</BenzinÄquivalent_ElektroFz>\n  <BenzinÄquivalent_Wasserstoff GG=\"VEE-PW Art. 4 f\">0.65</BenzinÄquivalent_Wasserstoff>\n  <BewertungsBereich_A GG=\"VEE-PW Art. 1 A\">6.32</BewertungsBereich_A>\n  <BewertungsBereich_B GG=\"VEE-PW Art. 1 B\">6.87</BewertungsBereich_B>\n  <BewertungsBereich_C GG=\"VEE-PW Art. 1 C\">7.30</BewertungsBereich_C>\n  <BewertungsBereich_D GG=\"VEE-PW Art. 1 D\">7.96</BewertungsBereich_D>\n  <BewertungsBereich_E GG=\"VEE-PW Art. 1 E\">8.50</BewertungsBereich_E>\n  <BewertungsBereich_F GG=\"VEE-PW Art. 1 F\">9.80</BewertungsBereich_F>\n  <BewertungsBereich_A_NEFZ GG=\"VEE-PW Art. 6 A\">4.90</BewertungsBereich_A_NEFZ>\n  <BewertungsBereich_B_NEFZ GG=\"VEE-PW Art. 6 B\">5.34</BewertungsBereich_B_NEFZ>\n  <BewertungsBereich_C_NEFZ GG=\"VEE-PW Art. 6 C\">5.80</BewertungsBereich_C_NEFZ>\n  <BewertungsBereich_D_NEFZ GG=\"VEE-PW Art. 6 D\">6.21</BewertungsBereich_D_NEFZ>\n  <BewertungsBereich_E_NEFZ GG=\"VEE-PW Art. 6 E\">6.80</BewertungsBereich_E_NEFZ>\n  <BewertungsBereich_F_NEFZ GG=\"VEE-PW Art. 6 F\">7.63</BewertungsBereich_F_NEFZ>\n </EfficiencyClassParameter>\n <EfficiencyClassParameter Formular=\"M1-EB_v05\" Jahr=\"2021\">\n  <BenzinÄquivalent_Diesel GG=\"VEE-PW Art. 4 a\">1.09</BenzinÄquivalent_Diesel>\n  <BenzinÄquivalent_Erdgas_CNG  GG=\"VEE-PW Art. 4 b\">0.78</BenzinÄquivalent_Erdgas_CNG>\n  <BenzinÄquivalent_Autogas_LPG GG=\"VEE-PW Art. 4 c\">0.78</BenzinÄquivalent_Autogas_LPG>\n  <BenzinÄquivalent_E85 GG=\"VEE-PW Art. 4 d\">1.67</BenzinÄquivalent_E85>\n  <BenzinÄquivalent_ElektroFz GG=\"VEE-PW Art. 4 e\">0.17</BenzinÄquivalent_ElektroFz>\n  <BenzinÄquivalent_Wasserstoff GG=\"VEE-PW Art. 4 f\">0.62</BenzinÄquivalent_Wasserstoff>\n  <BewertungsBereich_A GG=\"VEE-PW Art. 1 A\">6.21</BewertungsBereich_A>\n  <BewertungsBereich_B GG=\"VEE-PW Art. 1 B\">6.76</BewertungsBereich_B>\n  <BewertungsBereich_C GG=\"VEE-PW Art. 1 C\">7.20</BewertungsBereich_C>\n  <BewertungsBereich_D GG=\"VEE-PW Art. 1 D\">7.80</BewertungsBereich_D>\n  <BewertungsBereich_E GG=\"VEE-PW Art. 1 E\">8.50</BewertungsBereich_E>\n  <BewertungsBereich_F GG=\"VEE-PW Art. 1 F\">9.40</BewertungsBereich_F>\n  <BewertungsBereich_A_NEFZ GG=\"VEE-PW Art. 6 A\">4.80</BewertungsBereich_A_NEFZ>\n  <BewertungsBereich_B_NEFZ GG=\"VEE-PW Art. 6 B\">5.12</BewertungsBereich_B_NEFZ>\n  <BewertungsBereich_C_NEFZ GG=\"VEE-PW Art. 6 C\">5.56</BewertungsBereich_C_NEFZ>\n  <BewertungsBereich_D_NEFZ GG=\"VEE-PW Art. 6 D\">6.00</BewertungsBereich_D_NEFZ>\n  <BewertungsBereich_E_NEFZ GG=\"VEE-PW Art. 6 E\">6.65</BewertungsBereich_E_NEFZ>\n  <BewertungsBereich_F_NEFZ GG=\"VEE-PW Art. 6 F\">7.52</BewertungsBereich_F_NEFZ>\n </EfficiencyClassParameter>\n  <EfficiencyClassParameter Formular=\"M1-EB_v05\" Jahr=\"2022\">\n  <BenzinÄquivalent_Diesel GG=\"VEE-PW Art. 4 a\">1.09</BenzinÄquivalent_Diesel>\n  <BenzinÄquivalent_Erdgas_CNG  GG=\"VEE-PW Art. 4 b\">0.78</BenzinÄquivalent_Erdgas_CNG>\n  <BenzinÄquivalent_Autogas_LPG GG=\"VEE-PW Art. 4 c\">0.78</BenzinÄquivalent_Autogas_LPG>\n  <BenzinÄquivalent_E85 GG=\"VEE-PW Art. 4 d\">1.67</BenzinÄquivalent_E85>\n  <BenzinÄquivalent_ElektroFz GG=\"VEE-PW Art. 4 e\">0.17</BenzinÄquivalent_ElektroFz>\n  <BenzinÄquivalent_Wasserstoff GG=\"VEE-PW Art. 4 f\">0.61</BenzinÄquivalent_Wasserstoff>\n  <BewertungsBereich_A GG=\"VEE-PW Art. 1 A\">5.35</BewertungsBereich_A>\n  <BewertungsBereich_B GG=\"VEE-PW Art. 1 B\">6.10</BewertungsBereich_B>\n  <BewertungsBereich_C GG=\"VEE-PW Art. 1 C\">6.60</BewertungsBereich_C>\n  <BewertungsBereich_D GG=\"VEE-PW Art. 1 D\">7.30</BewertungsBereich_D>\n  <BewertungsBereich_E GG=\"VEE-PW Art. 1 E\">8.29</BewertungsBereich_E>\n  <BewertungsBereich_F GG=\"VEE-PW Art. 1 F\">10.14</BewertungsBereich_F>\n  <BewertungsBereich_A_NEFZ GG=\"VEE-PW Art. 6 A\">4.80</BewertungsBereich_A_NEFZ>\n  <BewertungsBereich_B_NEFZ GG=\"VEE-PW Art. 6 B\">5.12</BewertungsBereich_B_NEFZ>\n  <BewertungsBereich_C_NEFZ GG=\"VEE-PW Art. 6 C\">5.56</BewertungsBereich_C_NEFZ>\n  <BewertungsBereich_D_NEFZ GG=\"VEE-PW Art. 6 D\">6.00</BewertungsBereich_D_NEFZ>\n  <BewertungsBereich_E_NEFZ GG=\"VEE-PW Art. 6 E\">6.65</BewertungsBereich_E_NEFZ>\n  <BewertungsBereich_F_NEFZ GG=\"VEE-PW Art. 6 F\">7.52</BewertungsBereich_F_NEFZ>\n </EfficiencyClassParameter>\n <EfficiencyClassParameter Formular=\"M1-EB_v05\" Jahr=\"2023\">\n  <BenzinÄquivalent_Diesel GG=\"VEE-PW Art. 4 a\">1.09</BenzinÄquivalent_Diesel>\n  <BenzinÄquivalent_Erdgas_CNG  GG=\"VEE-PW Art. 4 b\">0.79</BenzinÄquivalent_Erdgas_CNG>\n  <BenzinÄquivalent_Autogas_LPG GG=\"VEE-PW Art. 4 c\">0.80</BenzinÄquivalent_Autogas_LPG>\n  <BenzinÄquivalent_E85 GG=\"VEE-PW Art. 4 d\">1.66</BenzinÄquivalent_E85>\n  <BenzinÄquivalent_ElektroFz GG=\"VEE-PW Art. 4 e\">0.22</BenzinÄquivalent_ElektroFz>\n  <BenzinÄquivalent_Wasserstoff GG=\"VEE-PW Art. 4 f\">0.66</BenzinÄquivalent_Wasserstoff>\n  <BewertungsBereich_A GG=\"VEE-PW Art. 1 A\">4.07</BewertungsBereich_A>\n  <BewertungsBereich_B GG=\"VEE-PW Art. 1 B\">5.09</BewertungsBereich_B>\n  <BewertungsBereich_C GG=\"VEE-PW Art. 1 C\">6.10</BewertungsBereich_C>\n  <BewertungsBereich_D GG=\"VEE-PW Art. 1 D\">7.12</BewertungsBereich_D>\n  <BewertungsBereich_E GG=\"VEE-PW Art. 1 E\">8.14</BewertungsBereich_E>\n  <BewertungsBereich_F GG=\"VEE-PW Art. 1 F\">9.16</BewertungsBereich_F>\n  <BewertungsBereich_A_NEFZ GG=\"VEE-PW Art. 6 A\">4.80</BewertungsBereich_A_NEFZ>\n  <BewertungsBereich_B_NEFZ GG=\"VEE-PW Art. 6 B\">5.12</BewertungsBereich_B_NEFZ>\n  <BewertungsBereich_C_NEFZ GG=\"VEE-PW Art. 6 C\">5.56</BewertungsBereich_C_NEFZ>\n  <BewertungsBereich_D_NEFZ GG=\"VEE-PW Art. 6 D\">6.00</BewertungsBereich_D_NEFZ>\n  <BewertungsBereich_E_NEFZ GG=\"VEE-PW Art. 6 E\">6.65</BewertungsBereich_E_NEFZ>\n  <BewertungsBereich_F_NEFZ GG=\"VEE-PW Art. 6 F\">7.52</BewertungsBereich_F_NEFZ>\n </EfficiencyClassParameter>\n</AstraEfficiencyClassDatabase>"]